[Event "Late-Titled-Tuesday-Blitz-May-28-2024"]
[Site "Chess.com"]
[Date "2024.05.28"]
[Round "5"]
[White "Yaacovn"]
[Black "HowTo2Draw"]
[Result "0-1"]
[WhiteElo "2842"]
[BlackElo "2584"]
[TimeControl "180+1"]
[EndTime "14:58:07 PDT"]
[Termination "HowTo2Draw won by resignation"]

1. d4 {[%clk 0:02:59]} 1... Nf6 {[%clk 0:02:59.3]} 2. Nf3 {[%clk 0:02:56.3]}
2... g6 {[%clk 0:02:59]} 3. e3 {[%clk 0:02:56.2]} 3... Bg7 {[%clk 0:02:59.2]} 4.
Be2 {[%clk 0:02:18.2]} 4... O-O {[%clk 0:02:55.6]} 5. O-O {[%clk 0:02:17.8]}
5... d6 {[%clk 0:02:49.9]} 6. b3 {[%clk 0:02:17.2]} 6... c5 {[%clk 0:02:47.5]}
7. Bb2 {[%clk 0:02:17.3]} 7... cxd4 {[%clk 0:02:46.1]} 8. Nxd4 {[%clk
0:02:18.2]} 8... Nc6 {[%clk 0:02:44.2]} 9. c4 {[%clk 0:02:17.8]} 9... a6 {[%clk
0:02:32.1]} 10. Qd2 {[%clk 0:02:16.8]} 10... Rb8 {[%clk 0:02:16.5]} 11. Rd1
{[%clk 0:02:10.6]} 11... Nxd4 {[%clk 0:02:13.3]} 12. Bxd4 {[%clk 0:02:07.7]}
12... b5 {[%clk 0:02:12.4]} 13. cxb5 {[%clk 0:02:02.1]} 13... axb5 {[%clk
0:02:13.3]} 14. Nc3 {[%clk 0:02:01.5]} 14... Bd7 {[%clk 0:01:57.8]} 15. Rac1
{[%clk 0:02:00.6]} 15... e5 {[%clk 0:01:45.5]} 16. Ba7 {[%clk 0:01:50.7]} 16...
Rb7 {[%clk 0:01:35]} 17. Qxd6 {[%clk 0:01:48.8]} 17... Rxa7 {[%clk 0:01:33]} 18.
Bxb5 {[%clk 0:01:48]} 18... Qb8 {[%clk 0:01:24.8]} 19. Qxb8 {[%clk 0:01:43.1]}
19... Rxb8 {[%clk 0:01:24.3]} 20. a4 {[%clk 0:01:42.8]} 20... e4 {[%clk
0:01:18.3]} 21. Bxd7 {[%clk 0:01:36]} 21... Nxd7 {[%clk 0:01:12]} 22. Nb5 {[%clk
0:01:35.3]} 22... Rab7 {[%clk 0:01:10]} 23. h3 {[%clk 0:01:28.2]} 23... Ne5
{[%clk 0:01:06.7]} 24. Rd5 {[%clk 0:01:25.8]} 24... Nd3 {[%clk 0:01:01.1]} 25.
Rc4 {[%clk 0:01:25.5]} 25... f5 {[%clk 0:01:00.4]} 26. f3 {[%clk 0:01:25.3]}
26... Ne5 {[%clk 0:00:39.9]} 27. Rcc5 {[%clk 0:01:19.7]} 27... Nd3 {[%clk
0:00:31]} 28. Rc6 {[%clk 0:01:15.5]} 28... Ne5 {[%clk 0:00:28.3]} 29. Rcc5
{[%clk 0:01:11.4]} 29... Nd3 {[%clk 0:00:27.8]} 30. Rc7 {[%clk 0:00:55.8]} 30...
Rxc7 {[%clk 0:00:24.7]} 31. Nxc7 {[%clk 0:00:56.7]} 31... Rxb3 {[%clk
0:00:23.9]} 32. Rd8+ {[%clk 0:00:56.8]} 32... Kf7 {[%clk 0:00:23.8]} 33. Rd7+
{[%clk 0:00:57.1]} 33... Kg8 {[%clk 0:00:22]} 34. fxe4 {[%clk 0:00:55.6]} 34...
fxe4 {[%clk 0:00:22.9]} 35. Rd8+ {[%clk 0:00:54.1]} 35... Kf7 {[%clk 0:00:22.7]}
36. Rd7+ {[%clk 0:00:54.1]} 36... Kg8 {[%clk 0:00:23]} 37. a5 {[%clk 0:00:48]}
37... Ra3 {[%clk 0:00:22.2]} 38. a6 {[%clk 0:00:47.4]} 38... Be5 {[%clk
0:00:22.3]} 39. g4 {[%clk 0:00:36]} 39... Bxc7 {[%clk 0:00:21.1]} 40. Rxc7
{[%clk 0:00:36]} 40... Rxa6 {[%clk 0:00:21.6]} 41. Re7 {[%clk 0:00:36.5]} 41...
Ra4 {[%clk 0:00:21.5]} 42. Kh2 {[%clk 0:00:36.3]} 42... Nc5 {[%clk 0:00:20.1]}
43. Re5 {[%clk 0:00:35.6]} 43... Nd7 {[%clk 0:00:19.5]} 44. Rb5 {[%clk
0:00:34.9]} 44... Nf8 {[%clk 0:00:18.8]} 45. Kg3 {[%clk 0:00:34.4]} 45... Ne6
{[%clk 0:00:18.2]} 46. Re5 {[%clk 0:00:33.8]} 46... Kf7 {[%clk 0:00:16.8]} 47.
Rb5 {[%clk 0:00:32.4]} 47... Kf6 {[%clk 0:00:16.8]} 48. h4 {[%clk 0:00:32.3]}
48... h6 {[%clk 0:00:17.1]} 49. Rb6 {[%clk 0:00:31.5]} 49... g5 {[%clk
0:00:17.2]} 50. hxg5+ {[%clk 0:00:29.7]} 50... hxg5 {[%clk 0:00:16.6]} 51. Rb5
{[%clk 0:00:30]} 51... Ra3 {[%clk 0:00:16.3]} 52. Rf5+ {[%clk 0:00:29.3]} 52...
Ke7 {[%clk 0:00:15.5]} 53. Kf2 {[%clk 0:00:28.5]} 53... Ra2+ {[%clk 0:00:15.5]}
54. Kf1 {[%clk 0:00:27.6]} 54... Kd6 {[%clk 0:00:14.3]} 55. Rb5 {[%clk
0:00:26.1]} 55... Rh2 {[%clk 0:00:13.5]} 56. Rb6+ {[%clk 0:00:22.9]} 56... Kd5
{[%clk 0:00:13.4]} 57. Rb5+ {[%clk 0:00:22.7]} 57... Nc5 {[%clk 0:00:13.6]} 58.
Rb4 {[%clk 0:00:22.4]} 58... Rh4 {[%clk 0:00:13.3]} 59. Kf2 {[%clk 0:00:20]}
59... Rxg4 {[%clk 0:00:13]} 60. Rd4+ {[%clk 0:00:19.6]} 60... Ke5 {[%clk
0:00:12.8]} 61. Rd8 {[%clk 0:00:20]} 61... Nd3+ {[%clk 0:00:13]} 62. Kf1 {[%clk
0:00:19.7]} 62... Rh4 {[%clk 0:00:13.4]} 63. Re8+ {[%clk 0:00:19.6]} 63... Kf5
{[%clk 0:00:13.4]} 64. Kg2 {[%clk 0:00:19]} 64... Rg4+ {[%clk 0:00:13]} 65. Kh2
{[%clk 0:00:18.1]} 65... Rh4+ {[%clk 0:00:13.2]} 66. Kg2 {[%clk 0:00:17.8]}
66... Rh6 {[%clk 0:00:13.6]} 67. Rf8+ {[%clk 0:00:17.5]} 67... Rf6 {[%clk
0:00:14.1]} 68. Ra8 {[%clk 0:00:17.1]} 68... Ne5 {[%clk 0:00:11.2]} 69. Ra1
{[%clk 0:00:16.3]} 69... Rd6 {[%clk 0:00:11.6]} 70. Ra8 {[%clk 0:00:15.4]} 70...
Rd2+ {[%clk 0:00:11.1]} 71. Kg3 {[%clk 0:00:15.3]} 71... Re2 {[%clk 0:00:11.3]}
72. Ra3 {[%clk 0:00:13.4]} 72... Nd3 {[%clk 0:00:11.5]} 73. Ra5+ {[%clk
0:00:12.3]} 73... Kg6 {[%clk 0:00:11.8]} 74. Kg4 {[%clk 0:00:12.2]} 74... Rg2+
{[%clk 0:00:11.9]} 75. Kh3 {[%clk 0:00:12]} 75... Rg1 {[%clk 0:00:11.9]} 76. Kh2
{[%clk 0:00:10.7]} 76... Re1 {[%clk 0:00:11.1]} 77. Kg3 {[%clk 0:00:10.2]} 77...
Rxe3+ {[%clk 0:00:11.4]} 78. Kg2 {[%clk 0:00:10.3]} 78... Re1 {[%clk 0:00:11.1]}
79. Kg3 {[%clk 0:00:10.3]} 79... Kh5 {[%clk 0:00:11.3]} 80. Ra8 {[%clk
0:00:09.9]} 80... Rg1+ {[%clk 0:00:11.6]} 81. Kh2 {[%clk 0:00:09.7]} 81... Rc1
{[%clk 0:00:11.7]} 82. Rh8+ {[%clk 0:00:09.1]} 82... Kg4 {[%clk 0:00:09.8]} 83.
Rf8 {[%clk 0:00:08]} 83... e3 {[%clk 0:00:09.8]} 84. Re8 {[%clk 0:00:07.3]}
84... Kf3 {[%clk 0:00:09.6]} 85. Rf8+ {[%clk 0:00:07.3]} 85... Nf4 {[%clk
0:00:09.6]} 86. Rc8 {[%clk 0:00:06.2]} 86... Rxc8 {[%clk 0:00:08.2]} 0-1

[Event "Late-Titled-Tuesday-Blitz-May-28-2024"]
[Site "Chess.com"]
[Date "2024.05.28"]
[Round "5"]
[White "Hakiki_satranc"]
[Black "SoCalJuniorChess"]
[Result "1-0"]
[WhiteElo "2400"]
[BlackElo "2224"]
[TimeControl "180+1"]
[EndTime "14:58:23 PDT"]
[Termination "Hakiki_satranc won on time"]

1. e4 {[%clk 0:02:52.4]} 1... d5 {[%clk 0:02:59.5]} 2. exd5 {[%clk 0:02:52.1]}
2... Qxd5 {[%clk 0:03:00.4]} 3. Nc3 {[%clk 0:02:52.4]} 3... Qd8 {[%clk
0:03:00.2]} 4. d4 {[%clk 0:02:52.9]} 4... Nf6 {[%clk 0:02:59.4]} 5. Bf4 {[%clk
0:02:52.5]} 5... c6 {[%clk 0:02:45.1]} 6. Qd2 {[%clk 0:02:51.6]} 6... e6 {[%clk
0:02:38.4]} 7. Nf3 {[%clk 0:02:47.2]} 7... Bb4 {[%clk 0:02:38.4]} 8. Bd3 {[%clk
0:02:24.6]} 8... Nd5 {[%clk 0:02:37]} 9. O-O {[%clk 0:02:11.4]} 9... Qa5 {[%clk
0:02:32.6]} 10. Bxb8 {[%clk 0:02:00.7]} 10... Rxb8 {[%clk 0:02:20.3]} 11. Qg5
{[%clk 0:01:59.7]} 11... g6 {[%clk 0:01:55.2]} 12. Ne4 {[%clk 0:01:46.3]} 12...
Be7 {[%clk 0:01:49.5]} 13. Qg3 {[%clk 0:01:41.9]} 13... Qc7 {[%clk 0:01:46.7]}
14. Ne5 {[%clk 0:01:24.5]} 14... f6 {[%clk 0:01:42.2]} 15. Nc4 {[%clk
0:01:24.4]} 15... Qxg3 {[%clk 0:01:38.9]} 16. hxg3 {[%clk 0:01:25.3]} 16... O-O
{[%clk 0:01:35.9]} 17. c3 {[%clk 0:01:22.7]} 17... f5 {[%clk 0:01:35.8]} 18.
Ned6 {[%clk 0:01:17.9]} 18... Bxd6 {[%clk 0:01:35.4]} 19. Nxd6 {[%clk
0:01:18.8]} 19... Rd8 {[%clk 0:01:29]} 20. Nc4 {[%clk 0:01:16]} 20... b6 {[%clk
0:01:26.5]} 21. Ne5 {[%clk 0:01:13]} 21... Bd7 {[%clk 0:01:26.6]} 22. Rfe1
{[%clk 0:01:11.6]} 22... Be8 {[%clk 0:01:26.8]} 23. Bc4 {[%clk 0:01:09.3]} 23...
b5 {[%clk 0:01:24.5]} 24. Bb3 {[%clk 0:01:09.2]} 24... a5 {[%clk 0:01:24.9]} 25.
a3 {[%clk 0:01:08.9]} 25... a4 {[%clk 0:01:25]} 26. Bxd5 {[%clk 0:01:02]} 26...
exd5 {[%clk 0:01:23.5]} 27. Nd3 {[%clk 0:00:58.8]} 27... Bf7 {[%clk 0:01:16.3]}
28. Re7 {[%clk 0:00:56.4]} 28... Re8 {[%clk 0:01:12.6]} 29. Rae1 {[%clk
0:00:56.9]} 29... Kf8 {[%clk 0:01:06.1]} 30. R7e5 {[%clk 0:00:52.5]} 30... Rxe5
{[%clk 0:01:00.4]} 31. Rxe5 {[%clk 0:00:53.4]} 31... Re8 {[%clk 0:00:59.5]} 32.
Nc5 {[%clk 0:00:44]} 32... h6 {[%clk 0:00:34.5]} 33. f4 {[%clk 0:00:42.6]} 33...
Re7 {[%clk 0:00:28.1]} 34. Kf2 {[%clk 0:00:41.6]} 34... Be8 {[%clk 0:00:25.3]}
35. Kf3 {[%clk 0:00:34.9]} 35... Bf7 {[%clk 0:00:24.8]} 36. g4 {[%clk 0:00:32]}
36... fxg4+ {[%clk 0:00:20.8]} 37. Kxg4 {[%clk 0:00:32.9]} 37... Be8 {[%clk
0:00:18.1]} 38. Kf3 {[%clk 0:00:30.8]} 38... Bd7 {[%clk 0:00:16.1]} 39. g4
{[%clk 0:00:28]} 39... Be8 {[%clk 0:00:14.6]} 40. g5 {[%clk 0:00:20.2]} 40... h5
{[%clk 0:00:14.2]} 41. Kg3 {[%clk 0:00:19.2]} 41... Bd7 {[%clk 0:00:14.2]} 42.
Kh4 {[%clk 0:00:18.9]} 42... Bf5 {[%clk 0:00:13.5]} 43. Na6 {[%clk 0:00:12.5]}
43... Bd7 {[%clk 0:00:10.1]} 44. Nb4 {[%clk 0:00:10.8]} 44... Be8 {[%clk
0:00:09.9]} 45. Nd3 {[%clk 0:00:10.2]} 45... Bd7 {[%clk 0:00:09.1]} 46. Kg3
{[%clk 0:00:09.4]} 46... Be8 {[%clk 0:00:09.2]} 47. Ne1 {[%clk 0:00:08.6]} 47...
Bd7 {[%clk 0:00:09.5]} 48. Nf3 {[%clk 0:00:09]} 48... Be8 {[%clk 0:00:09.7]} 49.
Nh4 {[%clk 0:00:09.7]} 49... Rg7 {[%clk 0:00:04.4]} 50. Re6 {[%clk 0:00:08.3]}
50... Re7 {[%clk 0:00:04.4]} 51. Nxg6+ {[%clk 0:00:06.2]} 51... Bxg6 {[%clk
0:00:04.7]} 52. Rxg6 {[%clk 0:00:07]} 52... Re2 {[%clk 0:00:04.7]} 53. Rxc6
{[%clk 0:00:06.1]} 53... Rxb2 {[%clk 0:00:04.9]} 54. f5 {[%clk 0:00:06.4]} 54...
Rb3 {[%clk 0:00:05.5]} 55. Kf4 {[%clk 0:00:06.3]} 55... Rxa3 {[%clk 0:00:05.8]}
56. Ke5 {[%clk 0:00:05.7]} 56... Ra1 {[%clk 0:00:05.4]} 57. Kf6 {[%clk
0:00:05.8]} 57... Ke8 {[%clk 0:00:05.4]} 58. g6 {[%clk 0:00:05.3]} 58... Kd7
{[%clk 0:00:06.3]} 59. Rb6 {[%clk 0:00:05.2]} 59... Rg1 {[%clk 0:00:05.9]} 60.
Rxb5 {[%clk 0:00:05]} 60... a3 {[%clk 0:00:06.6]} 61. Ra5 {[%clk 0:00:05.5]}
61... Rg3 {[%clk 0:00:06.5]} 62. g7 {[%clk 0:00:05.3]} 62... h4 {[%clk
0:00:07.4]} 63. Kf7 {[%clk 0:00:05.4]} 63... h3 {[%clk 0:00:06.3]} 64. g8=Q
{[%clk 0:00:05.6]} 64... Rxg8 {[%clk 0:00:06.4]} 65. Kxg8 {[%clk 0:00:06.5]}
65... h2 {[%clk 0:00:07.1]} 66. Ra7+ {[%clk 0:00:06.5]} 66... Kc6 {[%clk
0:00:07.1]} 67. Rh7 {[%clk 0:00:06.7]} 67... a2 {[%clk 0:00:07.7]} 68. Rh6+
{[%clk 0:00:06.3]} 68... Kb5 {[%clk 0:00:07.6]} 69. f6 {[%clk 0:00:06.8]} 69...
a1=Q {[%clk 0:00:07.6]} 70. f7 {[%clk 0:00:07.3]} 70... Qg1+ {[%clk 0:00:07.2]}
71. Kh8 {[%clk 0:00:06.6]} 71... h1=Q {[%clk 0:00:07.6]} 72. f8=Q {[%clk
0:00:06.8]} 72... Qe4 {[%clk 0:00:04.3]} 73. Qb8+ {[%clk 0:00:06.6]} 73... Kc4
{[%clk 0:00:04.7]} 74. Qc7+ {[%clk 0:00:06.7]} 74... Kd3 {[%clk 0:00:05.1]} 75.
Rh3+ {[%clk 0:00:06.3]} 75... Kd2 {[%clk 0:00:04.5]} 76. Rh2+ {[%clk 0:00:06.2]}
76... Kd3 {[%clk 0:00:02.5]} 77. Rh3+ {[%clk 0:00:06]} 77... Qee3 {[%clk
0:00:03]} 78. Rxe3+ {[%clk 0:00:05.8]} 78... Qxe3 {[%clk 0:00:03.9]} 79. Qc5
{[%clk 0:00:05.2]} 79... Qh6+ {[%clk 0:00:03.9]} 80. Kg8 {[%clk 0:00:05.2]}
80... Qg6+ {[%clk 0:00:04.5]} 81. Kf8 {[%clk 0:00:05.8]} 81... Qf6+ {[%clk
0:00:05.1]} 82. Ke8 {[%clk 0:00:06.3]} 82... Qe6+ {[%clk 0:00:05.7]} 83. Kd8
{[%clk 0:00:06.7]} 83... Kc2 {[%clk 0:00:05.8]} 84. Kc7 {[%clk 0:00:06.3]} 84...
Qf7+ {[%clk 0:00:05.7]} 85. Kc6 {[%clk 0:00:06.4]} 85... Qe6+ {[%clk 0:00:06]}
86. Kb5 {[%clk 0:00:06.4]} 86... Kd3 {[%clk 0:00:05.8]} 87. Kb4 {[%clk
0:00:06.5]} 87... Qf7 {[%clk 0:00:05.2]} 88. Qb5+ {[%clk 0:00:06.6]} 88... Ke4
{[%clk 0:00:05.1]} 89. Qb6 {[%clk 0:00:06.6]} 89... Qd7 {[%clk 0:00:04.5]} 90.
Kc5 {[%clk 0:00:06.4]} 90... Qe7+ {[%clk 0:00:04.3]} 91. Qd6 {[%clk 0:00:06.2]}
91... Qa7+ {[%clk 0:00:04]} 92. Qb6 {[%clk 0:00:06.2]} 92... Qa3+ {[%clk
0:00:03.8]} 93. Qb4 {[%clk 0:00:06]} 93... Qa7+ {[%clk 0:00:04]} 94. Kc6 {[%clk
0:00:06.5]} 94... Qe7 {[%clk 0:00:01.9]} 95. Qxe7+ {[%clk 0:00:05.8]} 1-0

[Event "Late-Titled-Tuesday-Blitz-May-28-2024"]
[Site "Chess.com"]
[Date "2024.05.28"]
[Round "5"]
[White "emeli_chess"]
[Black "protectiago"]
[Result "1-0"]
[WhiteElo "2423"]
[BlackElo "2127"]
[TimeControl "180+1"]
[EndTime "14:58:32 PDT"]
[Termination "emeli_chess won by checkmate"]

1. d4 {[%clk 0:03:00.9]} 1... d5 {[%clk 0:02:56.1]} 2. c4 {[%clk 0:03:00.7]}
2... dxc4 {[%clk 0:02:56.4]} 3. Nf3 {[%clk 0:02:59.9]} 3... a6 {[%clk
0:02:56.8]} 4. e3 {[%clk 0:02:58.2]} 4... e6 {[%clk 0:02:57.3]} 5. a4 {[%clk
0:02:53.3]} 5... c5 {[%clk 0:02:54.1]} 6. Bxc4 {[%clk 0:02:52.3]} 6... Nc6
{[%clk 0:02:52.5]} 7. O-O {[%clk 0:02:51.5]} 7... Nf6 {[%clk 0:02:52.7]} 8. Qe2
{[%clk 0:02:50]} 8... cxd4 {[%clk 0:02:51.4]} 9. Rd1 {[%clk 0:02:49.7]} 9... Be7
{[%clk 0:02:49.3]} 10. exd4 {[%clk 0:02:49.3]} 10... O-O {[%clk 0:02:48.4]} 11.
Nc3 {[%clk 0:02:49.4]} 11... Qc7 {[%clk 0:02:43.2]} 12. Bg5 {[%clk 0:02:33.2]}
12... h6 {[%clk 0:02:42.2]} 13. Bxf6 {[%clk 0:02:18.6]} 13... Bxf6 {[%clk
0:02:41.7]} 14. d5 {[%clk 0:02:15.2]} 14... Ne5 {[%clk 0:02:15.9]} 15. Nxe5
{[%clk 0:02:05.6]} 15... Bxe5 {[%clk 0:02:15.9]} 16. h3 {[%clk 0:01:49.9]} 16...
Bxc3 {[%clk 0:01:58.5]} 17. bxc3 {[%clk 0:01:48.3]} 17... exd5 {[%clk
0:01:58.1]} 18. Bxd5 {[%clk 0:01:46.6]} 18... Bf5 {[%clk 0:01:55.6]} 19. c4
{[%clk 0:01:41.3]} 19... Rad8 {[%clk 0:01:49.5]} 20. Qf3 {[%clk 0:01:38.7]}
20... Bc8 {[%clk 0:01:43.4]} 21. a5 {[%clk 0:01:35.2]} 21... Rd7 {[%clk
0:01:37.6]} 22. Qe3 {[%clk 0:01:31.8]} 22... Re7 {[%clk 0:01:33.3]} 23. Qb6
{[%clk 0:01:30.9]} 23... Rfe8 {[%clk 0:01:25.3]} 24. Qxc7 {[%clk 0:01:29.4]}
24... Rxc7 {[%clk 0:01:24.7]} 25. Kf1 {[%clk 0:01:21.8]} 25... Be6 {[%clk
0:01:24.5]} 26. Re1 {[%clk 0:01:14.8]} 26... Rec8 {[%clk 0:01:13.3]} 27. Rab1
{[%clk 0:01:04.7]} 27... Bxd5 {[%clk 0:01:09.9]} 28. cxd5 {[%clk 0:01:04.3]}
28... Rc5 {[%clk 0:01:10.1]} 29. Rxb7 {[%clk 0:01:03.5]} 29... Rxd5 {[%clk
0:01:09.3]} 30. Ree7 {[%clk 0:00:57.3]} 30... Rc1+ {[%clk 0:01:01.9]} 31. Ke2
{[%clk 0:00:56.4]} 31... Rc2+ {[%clk 0:01:02.1]} 32. Ke3 {[%clk 0:00:56.3]}
32... Rf5 {[%clk 0:01:00.1]} 33. Re8+ {[%clk 0:00:28.9]} 33... Kh7 {[%clk
0:00:59.2]} 34. Ra8 {[%clk 0:00:28.4]} 34... Rxa5 {[%clk 0:00:54.6]} 35. Rxf7
{[%clk 0:00:27.1]} 35... Raa2 {[%clk 0:00:45.5]} 36. Raa7 {[%clk 0:00:26.4]}
36... Re2+ {[%clk 0:00:44.4]} 37. Kd3 {[%clk 0:00:26.2]} 37... Rad2+ {[%clk
0:00:43.6]} 38. Kc3 {[%clk 0:00:26.3]} 38... Rc2+ {[%clk 0:00:41.8]} 39. Kb3
{[%clk 0:00:22.5]} 39... Rb2+ {[%clk 0:00:41.9]} 40. Kc3 {[%clk 0:00:21.5]}
40... Rbc2+ {[%clk 0:00:42.1]} 41. Kd4 {[%clk 0:00:21.3]} 41... Rcd2+ {[%clk
0:00:42.3]} 42. Kc5 {[%clk 0:00:20.6]} 42... Rc2+ {[%clk 0:00:42.4]} 43. Kb6
{[%clk 0:00:20.2]} 43... Re6+ {[%clk 0:00:30]} 44. Ka5 {[%clk 0:00:19.2]} 44...
Rg6 {[%clk 0:00:19.8]} 45. g4 {[%clk 0:00:18]} 45... Ra2+ {[%clk 0:00:18.6]} 46.
Kb4 {[%clk 0:00:17.9]} 46... a5+ {[%clk 0:00:18.9]} 47. Rxa5 {[%clk 0:00:17.5]}
47... Rb2+ {[%clk 0:00:14.3]} 48. Kc3 {[%clk 0:00:16.8]} 48... Re2 {[%clk
0:00:14.2]} 49. Raf5 {[%clk 0:00:15.1]} 49... Rd6 {[%clk 0:00:12.2]} 50. Rc7
{[%clk 0:00:13]} 50... Red2 {[%clk 0:00:11.5]} 51. Rff7 {[%clk 0:00:12.8]} 51...
R2d3+ {[%clk 0:00:11.4]} 52. Kc4 {[%clk 0:00:12.8]} 52... R3d4+ {[%clk
0:00:11.7]} 53. Kb3 {[%clk 0:00:12.9]} 53... Rd3+ {[%clk 0:00:11.6]} 54. Rc3
{[%clk 0:00:12.4]} 54... Rb6+ {[%clk 0:00:11.2]} 55. Kc2 {[%clk 0:00:12.4]}
55... Rxc3+ {[%clk 0:00:10]} 56. Kxc3 {[%clk 0:00:12.7]} 56... Kg6 {[%clk
0:00:09.7]} 57. Rf8 {[%clk 0:00:12.6]} 57... Re6 {[%clk 0:00:09.3]} 58. Kd3
{[%clk 0:00:10]} 58... Re7 {[%clk 0:00:08.6]} 59. f4 {[%clk 0:00:08.6]} 59...
Re1 {[%clk 0:00:05.9]} 60. h4 {[%clk 0:00:08.1]} 60... Re7 {[%clk 0:00:05.1]}
61. f5+ {[%clk 0:00:07.8]} 61... Kh7 {[%clk 0:00:03.7]} 62. Rd8 {[%clk
0:00:06.9]} 62... g6 {[%clk 0:00:03.4]} 63. f6 {[%clk 0:00:06]} 63... Rf7 {[%clk
0:00:03.4]} 64. g5 {[%clk 0:00:06]} 64... hxg5 {[%clk 0:00:04.3]} 65. hxg5
{[%clk 0:00:06.1]} 65... Ra7 {[%clk 0:00:03]} 66. Ke4 {[%clk 0:00:06.1]} 66...
Ra4+ {[%clk 0:00:02.7]} 67. Ke5 {[%clk 0:00:06.2]} 67... Ra5+ {[%clk 0:00:03.3]}
68. Rd5 {[%clk 0:00:05.7]} 68... Ra7 {[%clk 0:00:02.1]} 69. Ke6 {[%clk
0:00:05.9]} 69... Ra6+ {[%clk 0:00:02.3]} 70. Rd6 {[%clk 0:00:06]} 70... Ra8
{[%clk 0:00:01.8]} 71. Rd7+ {[%clk 0:00:05.7]} 71... Kg8 {[%clk 0:00:01]} 72.
Ke7 {[%clk 0:00:05.9]} 72... Rf8 {[%clk 0:00:01]} 73. Rd8 {[%clk 0:00:05.5]}
73... Rxd8 {[%clk 0:00:00.8]} 74. Kxd8 {[%clk 0:00:05.9]} 74... Kf7 {[%clk
0:00:01.5]} 75. Kd7 {[%clk 0:00:06.1]} 75... Kf8 {[%clk 0:00:02]} 76. Ke6 {[%clk
0:00:06.3]} 76... Ke8 {[%clk 0:00:02.7]} 77. Kd6 {[%clk 0:00:04.2]} 77... Kf7
{[%clk 0:00:03.6]} 78. Kc7 {[%clk 0:00:03.6]} 78... Ke8 {[%clk 0:00:03.5]} 79.
Kc8 {[%clk 0:00:03.5]} 79... Kf7 {[%clk 0:00:03.4]} 80. Kd7 {[%clk 0:00:03.5]}
80... Kf8 {[%clk 0:00:02.9]} 81. Kd6 {[%clk 0:00:02.2]} 81... Kf7 {[%clk
0:00:02.7]} 82. Ke5 {[%clk 0:00:02.4]} 82... Ke8 {[%clk 0:00:02.7]} 83. Ke6
{[%clk 0:00:02.5]} 83... Kf8 {[%clk 0:00:03.1]} 84. f7 {[%clk 0:00:02.4]} 84...
Kg7 {[%clk 0:00:03.3]} 85. Ke7 {[%clk 0:00:02.9]} 85... Kh7 {[%clk 0:00:03.3]}
86. Ke8 {[%clk 0:00:03]} 86... Kh8 {[%clk 0:00:02.7]} 87. f8=Q+ {[%clk
0:00:03.4]} 87... Kh7 {[%clk 0:00:01.6]} 88. Qf7+ {[%clk 0:00:03.6]} 88... Kh8
{[%clk 0:00:01.5]} 89. Qa7 {[%clk 0:00:02.9]} 89... Kg8 {[%clk 0:00:01]} 90. Ke7
{[%clk 0:00:03.1]} 90... Kg7 {[%clk 0:00:01.2]} 91. Ke6+ {[%clk 0:00:03.4]}
91... Kf8 {[%clk 0:00:01.1]} 92. Kf6 {[%clk 0:00:03.5]} 92... Ke8 {[%clk
0:00:00.9]} 93. Qe7# {[%clk 0:00:03.6]} 1-0

[Event "Late-Titled-Tuesday-Blitz-May-28-2024"]
[Site "Chess.com"]
[Date "2024.05.28"]
[Round "6"]
[White "Cuchulin"]
[Black "ACollins05"]
[Result "1-0"]
[WhiteElo "2241"]
[BlackElo "2456"]
[TimeControl "180+1"]
[EndTime "15:02:00 PDT"]
[Termination "Cuchulin won by resignation"]

1. d4 {[%clk 0:03:00.9]} 1... c6 {[%clk 0:03:00.9]} 2. Bf4 {[%clk 0:03:00.7]}
2... d5 {[%clk 0:03:01.6]} 3. e3 {[%clk 0:03:00.9]} 3... Nf6 {[%clk 0:03:02.2]}
4. Nf3 {[%clk 0:03:01.2]} 4... Bf5 {[%clk 0:03:02.4]} 5. Bd3 {[%clk 0:03:00.6]}
5... Bxd3 {[%clk 0:03:02.3]} 6. Qxd3 {[%clk 0:03:01.5]} 6... e6 {[%clk 0:03:03]}
7. O-O {[%clk 0:03:00.3]} 7... Bd6 {[%clk 0:03:03.1]} 8. Ne5 {[%clk 0:03:00.4]}
8... O-O {[%clk 0:03:02.7]} 9. Nd2 {[%clk 0:03:00.8]} 9... Qc7 {[%clk
0:03:03.3]} 10. Bg3 {[%clk 0:02:58.4]} 10... c5 {[%clk 0:03:03.3]} 11. c3 {[%clk
0:02:58.1]} 11... Nc6 {[%clk 0:03:03.4]} 12. f4 {[%clk 0:02:57.6]} 12... c4
{[%clk 0:03:01.1]} 13. Qe2 {[%clk 0:02:51.3]} 13... Ne7 {[%clk 0:02:57.3]} 14.
e4 {[%clk 0:02:50.5]} 14... b5 {[%clk 0:02:54]} 15. Nxf7 {[%clk 0:02:46.1]}
15... Rxf7 {[%clk 0:02:42.1]} 16. e5 {[%clk 0:02:46.2]} 16... Nd7 {[%clk
0:02:42.6]} 17. exd6 {[%clk 0:02:45.6]} 17... Qxd6 {[%clk 0:02:42.9]} 18. f5
{[%clk 0:02:45.5]} 18... e5 {[%clk 0:02:40.2]} 19. dxe5 {[%clk 0:02:44.2]} 19...
Qb6+ {[%clk 0:02:38.9]} 20. Bf2 {[%clk 0:02:40.9]} 20... Nc5 {[%clk 0:02:39.2]}
21. b4 {[%clk 0:02:27.8]} 21... cxb3 {[%clk 0:02:38.6]} 22. Nxb3 {[%clk
0:02:27.6]} 22... Rc8 {[%clk 0:02:36.6]} 23. Nxc5 {[%clk 0:02:24.7]} 23... Rxc5
{[%clk 0:02:37.5]} 24. Bxc5 {[%clk 0:02:24.5]} 24... Qxc5+ {[%clk 0:02:37.9]}
25. Kh1 {[%clk 0:02:24.6]} 25... Nxf5 {[%clk 0:02:35.8]} 26. e6 {[%clk
0:02:20.7]} 26... Rf8 {[%clk 0:02:31.5]} 27. Rxf5 {[%clk 0:02:20.4]} 1-0

[Event "Late-Titled-Tuesday-Blitz-May-28-2024"]
[Site "Chess.com"]
[Date "2024.05.28"]
[Round "6"]
[White "SoCalJuniorChess"]
[Black "nitpicker"]
[Result "0-1"]
[WhiteElo "2218"]
[BlackElo "2305"]
[TimeControl "180+1"]
[EndTime "15:02:34 PDT"]
[Termination "nitpicker won by resignation"]

1. d4 {[%clk 0:03:00.9]} 1... Nf6 {[%clk 0:02:59.2]} 2. Nc3 {[%clk 0:03:01.2]}
2... d5 {[%clk 0:02:58.3]} 3. Bf4 {[%clk 0:03:01.4]} 3... a6 {[%clk 0:02:57.9]}
4. e3 {[%clk 0:03:00.7]} 4... e6 {[%clk 0:02:58.1]} 5. a3 {[%clk 0:02:59.2]}
5... Bd6 {[%clk 0:02:57.9]} 6. Nf3 {[%clk 0:02:58]} 6... b5 {[%clk 0:02:43.6]}
7. b4 {[%clk 0:02:57.6]} 7... Nbd7 {[%clk 0:02:40.7]} 8. Ne5 {[%clk 0:02:57.4]}
8... Nb6 {[%clk 0:02:39]} 9. Bd3 {[%clk 0:02:54.5]} 9... Nc4 {[%clk 0:02:35.8]}
10. Bxc4 {[%clk 0:02:50.4]} 10... bxc4 {[%clk 0:02:18.6]} 11. e4 {[%clk
0:02:49.4]} 11... dxe4 {[%clk 0:02:14.5]} 12. Qe2 {[%clk 0:02:48.7]} 12... Bb7
{[%clk 0:02:14.5]} 13. Qxc4 {[%clk 0:02:46.4]} 13... O-O {[%clk 0:02:05.8]} 14.
O-O {[%clk 0:02:45]} 14... Nd5 {[%clk 0:02:00.1]} 15. Nxd5 {[%clk 0:02:36.6]}
15... exd5 {[%clk 0:01:53.6]} 16. Qe2 {[%clk 0:02:37.5]} 16... f6 {[%clk
0:01:46]} 17. Qh5 {[%clk 0:02:19.6]} 17... fxe5 {[%clk 0:01:41.8]} 18. dxe5
{[%clk 0:02:20.5]} 18... Be7 {[%clk 0:01:40]} 19. e6 {[%clk 0:02:19.7]} 19...
Rxf4 {[%clk 0:01:36.3]} 0-1